bitfinex/quotes_ETHUSD_20220201
["timestamp","ask_amount","ask_price","bid_price","bid_amount"]
[1643739723561,1.51733797,2780.0,2779.3,0.66599943]
[1643739723765,0.1797,2780.3,2779.6,0.89949]
[1643739723961,1.0,2781.0,2779.9,0.36337998]
[1643739723962,1.51727759,2780.2,2779.9,0.36337998]
[1643739724162,0.1797,2780.7,2779.9,0.36337998]
[1643739724362,1.51718111,2780.6,2779.9,0.36337998]
[1643739724764,1.51718111,2780.5,2779.9,0.36337998]
[1643739724963,0.84113946,2780.8,2779.9,0.36337998]
[1643739724964,1.51718111,2780.4,2779.9,1.11385704]
[1643739725162,1.51718111,2780.3,2779.9,1.11385704]
[1643739725363,1.51718111,2780.2,2779.7,0.3]
[1643739725566,0.90270135,2780.6,2779.7,0.3]
[1643739725567,1.51718111,2780.1,2779.7,0.3]
[1643739725765,0.90270135,2780.6,2779.7,0.3]
[1643739726065,1.51717833,2780.5,2779.7,0.3]
[1643739726564,0.68340339,2780.1,2779.7,0.3]
[1643739726765,0.43602368,2779.7,2779.5,0.1797]
[1643739727204,0.68340339,2780.1,2779.5,0.1797]
[1643739727413,1.51732494,2780.0,2779.5,0.1797]
[1643739727811,1.51732494,2779.9,2779.5,0.1797]
[1643739728013,1.51732494,2779.8,2779.5,0.1797]
[1643739728210,0.43946546,2779.7,2779.5,0.1797]
[1643739729613,1.51733749,2779.6,2779.5,0.1797]
[1643739729812,1.51733749,2779.6,2779.2,1.07928]
[1643739730015,1.51733749,2779.6,2779.4,0.76843357]
[1643739730514,1.51733749,2779.6,2779.2,1.07928]
[1643739730715,1.51733749,2779.6,2779.1,2.9336]
[1643739730963,1.51733749,2779.6,2778.9,0.1797]
[1643739731161,1.51733749,2779.6,2778.8,1.1571]
[1643739731563,0.39370341,2778.9,2778.8,1.1571]
[1643739731763,0.39370341,2778.9,2778.7,0.1799]
[1643739732968,0.39370341,2778.9,2778.4,3.9698]
[1643739733169,0.39370341,2778.9,2778.4,0.6]
[1643739733374,0.39370341,2778.9,2778.4,0.3]
[1643739734072,0.39370341,2778.9,2778.3,0.13819997]
[1643739734704,0.43924473,2778.4,2778.2,0.3]
[1643739734905,0.43924473,2778.4,2778.0,5.2501]
[1643739735107,0.43924473,2778.4,2777.9,0.49071826]
[1643739736206,0.43924473,2778.4,2777.9,0.79071826]
[1643739736406,0.81578928,2778.7,2778.0,0.72008448]
[1643739736806,0.81578928,2778.7,2778.1,0.3]
[1643739737414,0.1799,2778.8,2778.1,0.3]
[1643739737616,0.1799,2778.8,2778.3,0.43434987]
[1643739737815,0.1799,2779.4,2778.4,2.14462809]
[1643739738017,1.51757171,2779.3,2778.4,2.14462809]
[1643739738221,1.1799,2779.8,2778.4,2.44462809]
[1643739738453,1.1799,2779.8,2778.6,0.89689045]
[1643739738454,0.68762233,2779.3,2778.6,0.89689045]
[1643739738861,0.43758394,2779.0,2778.6,1.79666045]
[1643739739066,0.1799,2779.8,2778.6,4.8376963]
[1643739739261,1.51745479,2779.7,2778.7,0.1799]
[1643739739659,1.51745479,2779.6,2778.7,0.1799]
[1643739739861,0.1799,2780.0,2778.7,0.1799]
[1643739740074,0.31792352,2779.4,2778.9,0.34570435]
[1643739740267,0.31792352,2779.4,2778.9,0.64570435]
[1643739740760,0.31792352,2779.4,2778.9,1.54538435]
[1643739741163,0.1799,2780.0,2779.0,2.31215686]
[1643739741363,1.51739598,2779.9,2779.0,2.31215686]
[1643739741761,1.51739598,2779.8,2779.0,2.31215686]
[1643739741960,1.51739598,2779.7,2779.0,2.31215686]
[1643739742235,0.8621081,2780.0,2779.5,0.89952]
[1643739742526,1.51732562,2779.9,2779.5,0.89952]
[1643739742727,1.51732562,2779.9,2779.1,2.09912]
[1643739742931,1.51732562,2779.9,2779.1,1.79912]
[1643739743326,0.1797,2779.8,2779.1,1.79912]
[1643739743527,1.51732562,2779.7,2778.9,5.1105]
[1643739743728,0.73866413,2779.4,2778.9,5.1105]
[1643739743929,0.73866413,2779.4,2778.9,1.842]
[1643739744129,0.41911823,2779.2,2778.9,1.842]
[1643739744327,0.41911823,2779.2,2778.9,0.6]
[1643739744530,0.73866413,2779.4,2778.8,2.09934]
[1643739744729,1.51758207,2779.3,2778.8,2.09934]
[1643739745131,1.51758207,2779.3,2778.6,3.7895]
[1643739745330,1.69748207,2779.3,2778.5,1.2424]
[1643739745532,1.51758207,2779.2,2778.3,3.787]
[1643739745730,0.1799,2779.1,2778.1,9.32939]
[1643739745965,0.1799,2779.1,2778.1,8.4294]
[1643739745966,0.7775728,2778.3,2778.1,8.4294]
[1643739746165,0.42953539,2778.1,2777.9,0.45489026]
[1643739746567,0.42953539,2778.1,2777.9,0.31081826]
[1643739746969,0.42953539,2778.1,2777.9,0.61081826]
[1643739747168,0.7775728,2778.3,2777.9,0.91081826]
[1643739747371,0.1799,2778.7,2777.9,0.91081826]
[1643739747570,0.1799,2778.7,2777.9,0.31081826]
[1643739747771,0.519,2778.9,2777.9,0.31081826]
[1643739747772,0.1799,2778.8,2777.9,0.31081826]
[1643739747971,1.51797373,2778.7,2777.9,0.31081826]
[1643739748174,0.57927632,2778.6,2777.9,0.31081826]
[1643739748375,1.09827632,2778.6,2777.9,0.31081826]
[1643739748571,0.6989,2778.6,2777.9,0.31081826]
[1643739749572,0.88612103,2778.1,2777.9,0.31081826]
[1643739749806,0.38789531,2778.0,2777.9,0.31081826]
[1643739753958,21.559,2778.3,2777.9,0.31081826]
[1643739754159,21.03876416,2778.3,2777.9,0.31081826]
[1643739755159,0.33720881,2778.2,2777.9,0.31081826]
[1643739763566,0.33720881,2778.2,2777.9,0.27837598]
[1643739764265,0.1799,2778.1,2777.9,0.27837598]
[1643739764465,0.51710881,2778.2,2777.9,0.27837598]
[1643739764725,0.33720881,2778.2,2777.9,0.27837598]
[1643739766828,0.1799,2778.3,2777.9,0.27837598]
[1643739767028,0.1799,2778.4,2777.9,0.27837598]
[1643739767226,0.1799,2779.2,2777.9,0.57837598]
[1643739767428,1.51785407,2779.1,2777.9,0.57837598]
[1643739767728,0.1799,2779.0,2777.9,0.57837598]
[1643739767927,0.1799,2779.0,2777.9,1.73347598]
[1643739768129,0.43881874,2779.1,2778.5,1.2699649]
[1643739768325,0.43881874,2779.1,2778.6,0.89983]
[1643739768326,1.69770915,2779.0,2778.6,0.89983]
[1643739768562,0.1799,2779.0,2778.6,0.89983]
[1643739768763,0.1799,2779.2,2778.6,1.49983]
[1643739768968,0.8265,2779.3,2778.6,1.49983]
[1643739768969,0.8265,2779.3,2778.6,0.6]
[1643739769164,0.8265,2779.3,2778.6,1.4799]
[1643739769362,0.8265,2779.3,2778.7,2.26744186]
[1643739769565,0.8265,2779.3,2779.0,0.9138679]
[1643739769762,0.8265,2779.3,2779.0,1.5138679]
[1643739771065,0.8265,2779.3,2779.1,0.38378235]
[1643739771466,0.1799,2779.9,2779.1,0.38378235]
[1643739771665,1.51746697,2779.8,2779.1,0.38378235]
[1643739772727,0.6854397,2779.7,2779.1,0.38378235]
[1643739772926,1.51746697,2779.6,2779.2,0.89966]
[1643739773127,0.1799,2779.9,2779.2,0.89966]
[1643739773326,1.51745852,2779.8,2779.2,0.89966]
[1643739774028,2.38385952,2779.8,2779.2,0.89966]
[1643739774227,1.51745852,2779.7,2779.2,0.89966]
[1643739774427,1.69715852,2779.7,2779.2,0.89966]
[1643739774629,1.51745852,2779.6,2779.2,0.89966]
[1643739774826,0.1797,2779.9,2779.2,0.89966]
[1643739775029,1.51743404,2779.8,2779.2,0.89966]
[1643739775826,4.45671875,2780.3,2779.2,0.89966]
[1643739775827,0.1798,2780.1,2779.6,0.4309274]
[1643739776071,3.92893988,2780.9,2779.7,3.9785092]
[1643739776072,0.66143946,2780.8,2779.7,3.9785092]
[1643739776265,3.86763631,2780.9,2779.8,3.13819997]
[1643739776465,3.86763631,2780.9,2779.9,0.1797]
[1643739776466,3.02649685,2780.9,2779.9,0.1797]
[1643739776670,0.84113946,2781.2,2779.9,0.1797]
[1643739776965,0.66143946,2781.1,2780.5,0.76087496]
[1643739777170,0.66143946,2781.1,2780.6,0.89925]
[1643739777767,2.02761082,2781.2,2780.6,0.89925]
[1643739778367,23.06761082,2781.2,2780.4,0.9412366]
[1643739778568,0.66143946,2781.0,2780.1,4.0598]
[1643739778770,0.1797,2780.9,2780.1,4.0598]
[1643739778969,0.1797,2780.9,2780.2,0.32808169]
[1643739779272,0.1797,2780.9,2780.7,0.44186414]
[1643739779467,0.1797,2781.0,2780.7,0.44186414]
[1643739779705,0.84113946,2781.2,2780.7,0.44186414]
[1643739780108,0.84113946,2781.2,2780.6,0.75071984]
[1643739780109,0.84113946,2781.2,2780.2,5.07862]
[1643739780408,0.84113946,2781.2,2780.3,0.3]
[1643739780608,0.66143946,2781.1,2780.1,3.7598]
[1643739780907,0.84113946,2781.0,2780.1,4.0598]
[1643739781108,21.88113946,2781.0,2780.1,4.0598]
[1643739781307,0.35492444,2780.4,2780.1,4.0598]
[1643739781522,0.35492444,2780.4,2780.1,0.3]
[1643739781910,0.1797,2780.8,2780.0,1.50332322]
[1643739782815,21.2197,2780.8,2780.0,1.50332322]
[1643739783212,0.42268303,2780.5,2780.0,1.50332322]
[1643739783868,0.42268303,2780.5,2779.9,1.58855843]
[1643739784071,0.42268303,2780.5,2779.7,0.1797]
[1643739784270,0.42268303,2780.5,2779.6,8.56755]
[1643739784271,0.1797,2780.4,2779.6,6.7686]
[1643739784473,0.1797,2780.4,2779.4,1.3146]
[1643739784871,21.559,2780.3,2779.4,1.3146]
[1643739785070,0.32036524,2779.6,2779.3,3.32749997]
[1643739785271,0.32036524,2779.6,2779.3,0.31789997]
[1643739785676,0.32036524,2779.6,2779.3,0.13819997]
[1643739785870,0.32036524,2779.6,2779.2,0.1797]
[1643739787510,0.32036524,2779.6,2778.9,5.0798]
[1643739787712,0.32036524,2779.6,2778.9,1.7994]
[1643739788910,0.32036524,2779.6,2779.0,0.1799]
[1643739789111,0.32036524,2779.6,2778.9,1.9793]
[1643739791360,0.41985813,2779.1,2778.9,1.9793]
[1643739791765,0.41985813,2779.1,2778.9,1.7994]
[1643739793163,0.80655184,2779.3,2778.9,1.7994]
[1643739793564,21.2199,2779.7,2778.9,1.7994]
[1643739793864,21.7389,2779.7,2778.9,1.7994]
[1643739794367,0.34453751,2779.2,2778.9,1.7994]
[1643739795007,0.34453751,2779.2,2778.6,0.1799]
[1643739795203,0.519,2779.1,2778.0,0.1799]
[1643739795403,0.519,2779.1,2778.0,0.56260435]
[1643739795404,0.43743129,2778.5,2778.0,0.56260435]
[1643739795603,0.43743129,2778.5,2778.2,0.69178326]
[1643739796003,0.43743129,2778.5,2778.2,1.59186326]
[1643739796205,0.88734879,2778.8,2778.2,1.59186326]
[1643739797105,0.1799,2779.0,2778.2,1.59186326]
[1643739797308,0.6989,2779.0,2778.2,1.59186326]
[1643739797515,0.96440432,2779.0,2778.5,0.34762869]
[1643739798972,0.96440432,2779.0,2778.4,0.89998]
[1643739800174,0.96440432,2779.0,2778.3,1.7999]
[1643739800975,0.519,2779.0,2778.6,0.44566837]
[1643739801177,0.1799,2779.4,2778.6,0.44566837]
[1643739801373,1.1797,2780.0,2778.6,0.44566837]
[1643739801573,21.04,2779.8,2778.6,0.74566837]
[1643739801776,1.69747844,2779.7,2778.6,0.74566837]
[1643739801977,1.51757844,2779.6,2778.5,3.41283241]
[1643739802216,0.9081091,2779.1,2778.5,3.2205]
[1643739802424,0.9081091,2779.1,2778.4,4.2607]
[1643739802626,0.1799,2779.6,2778.4,4.2607]
[1643739802825,1.51746093,2779.5,2778.4,7.5685]
[1643739803025,0.34094733,2779.3,2778.8,0.43207437]
[1643739803722,0.1799,2779.4,2778.8,1.13995995]
[1643739803723,0.88693077,2779.4,2778.8,1.13995995]
[1643739803921,0.70703077,2779.4,2778.9,0.89978]
[1643739804122,1.51743508,2779.3,2778.9,0.89978]
[1643739804523,0.70703077,2779.4,2778.9,0.89978]
[1643739804923,1.5174243,2779.3,2778.9,0.89978]
[1643739805426,1.92322086,2779.3,2778.7,1.79955]
[1643739805623,1.6973243,2779.2,2778.7,0.3]
[1643739805824,0.1799,2779.2,2778.7,0.3]
[1643739806072,1.51750293,2779.1,2778.4,9.06817]
[1643739806270,1.51593955,2779.1,2778.4,9.06817]
[1643739806872,1.51593955,2779.1,2778.4,6.06037]
[1643739807274,1.51593955,2779.1,2778.5,0.73408531]
[1643739809279,0.41741106,2778.8,2778.4,5.16063]
[1643739809478,0.41741106,2778.8,2778.4,0.89993]
[1643739810109,0.41741106,2778.8,2778.2,1.79981]
[1643739810312,0.86206397,2778.7,2778.2,1.79981]
[1643739810719,0.86206397,2778.7,2778.1,4.4608]
[1643739810914,1.04196397,2778.7,2778.1,4.4608]
[1643739811111,1.04196397,2778.7,2778.1,1.20508562]
[1643739811715,0.42526907,2778.2,2778.0,1.80007]
[1643739812717,0.1799,2778.7,2778.0,1.80007]
[1643739813319,0.1799,2778.7,2778.0,2.10007]
[1643739813557,0.1799,2778.7,2778.1,0.90003]
[1643739813757,0.52130272,2779.0,2778.4,0.44372433]
[1643739813963,0.52130272,2779.0,2778.4,1.34395273]
[1643739813964,1.2450451,2779.0,2778.4,1.34395273]
[1643739814760,0.52130272,2779.0,2778.4,1.34395273]
[1643739814963,0.1799,2779.0,2778.4,1.94395273]
[1643739815262,0.1799,2779.4,2778.4,1.94395273]
[1643739815461,1.0,2779.8,2778.4,1.94395273]
[1643739815462,0.1799,2779.5,2778.4,1.94395273]
[1643739815661,0.1799,2779.6,2778.5,1.1669]
[1643739815865,0.86319447,2779.4,2778.5,1.1669]
[1643739816062,0.38631109,2779.1,2778.5,1.4669]
[1643739816664,0.1799,2779.3,2778.9,0.89477048]
[1643739816864,0.1799,2779.6,2778.9,0.89477048]
[1643739817066,1.66143946,2779.9,2778.9,0.89477048]
[1643739817067,0.1799,2779.8,2778.9,0.89477048]
[1643739817314,0.84133946,2779.8,2778.9,0.89477048]
[1643739817912,0.84133946,2779.8,2778.9,1.79455048]
[1643739818114,0.36817726,2779.5,2779.0,0.42894565]
[1643739818314,0.1799,2779.4,2778.9,0.50771353]
[1643739819115,0.1799,2779.4,2778.9,1.40749353]
[1643739819316,0.1799,2779.6,2778.9,1.40749353]
[1643739819515,0.1799,2779.7,2778.9,1.40749353]
[1643739819714,1.66143946,2779.9,2778.9,1.40749353]
[1643739819715,0.1799,2779.8,2778.9,1.40749353]
[1643739819915,0.84133946,2779.8,2778.9,1.40749353]
[1643739821364,0.84133946,2779.8,2779.1,0.38507622]
[1643739821661,0.1799,2779.8,2779.1,0.89973]
[1643739822062,0.84133946,2779.8,2779.1,0.89973]
[1643739822266,0.66143946,2779.8,2779.1,0.89973]
[1643739822465,0.67818404,2779.5,2779.1,0.89973]
[1643739822667,0.37181021,2779.2,2779.1,0.89973]
[1643739822966,0.37181021,2779.2,2778.8,1.79956]
[1643739823366,0.67818404,2779.5,2778.8,1.79956]
[1643739823771,0.67818404,2779.5,2778.8,2.5147251]
[1643739824571,0.3187146,2779.3,2778.8,2.84536678]
[1643739824820,0.66143946,2779.6,2778.8,3.14536678]
[1643739825420,0.66143946,2779.7,2778.8,3.14536678]
[1643739826021,0.42798809,2779.6,2778.8,3.14536678]
[1643739826225,1.08942755,2779.6,2778.8,3.14536678]
[1643739826426,1.51749947,2779.5,2778.8,3.14536678]
[1643739827026,0.77911189,2779.3,2778.8,2.5147251]
[1643739827226,1.51749947,2779.2,2778.8,0.7151651]
[1643739828227,0.37661772,2779.1,2778.8,0.7151651]
[1643739828456,1.51749947,2779.0,2778.7,0.89977]
[1643739829457,1.51749947,2779.0,2778.8,0.71111745]
[1643739831161,1.51749947,2779.0,2778.7,0.89977]
[1643739833318,0.1799,2779.6,2778.7,3.24341288]
[1643739833319,1.51749947,2778.9,2778.7,3.24341288]
[1643739833516,0.84133946,2779.6,2778.7,1.19977]
[1643739833718,1.51744731,2779.5,2778.7,2.0994868]
[1643739834120,0.44296555,2779.3,2779.1,0.7394943]
[1643739834321,1.51744731,2779.2,2778.9,0.89972]
[1643739834719,1.51744731,2779.1,2778.9,0.89972]
[1643739834918,1.51744731,2779.0,2778.9,0.89972]
[1643739835218,1.51744731,2779.0,2778.9,1.19972]
[1643739835718,1.51744731,2779.4,2779.0,0.6]
[1643739835958,1.51740245,2779.3,2779.0,2.77800913]
[1643739836159,0.32074823,2779.5,2779.2,0.91515667]
[1643739836362,0.32074823,2779.5,2779.2,1.81482667]
[1643739836363,1.51740083,2779.4,2779.2,1.81482667]
[1643739837160,1.51740083,2779.3,2779.2,1.81482667]
[1643739837365,1.51740083,2779.4,2779.2,1.81482667]
[1643739837864,1.51740083,2779.3,2779.2,1.81482667]
[1643739838264,1.51740083,2779.6,2779.2,1.81482667]
[1643739838466,1.51740083,2779.5,2779.2,1.81482667]
[1643739838665,1.51740083,2779.6,2779.2,1.81482667]
[1643739838865,0.36093654,2779.4,2779.2,1.81482667]
[1643739839066,1.51740083,2779.3,2779.2,0.89967]
[1643739839271,1.51740083,2779.3,2779.0,2.09936]
[1643739840212,1.51740083,2779.3,2779.0,2.49751616]
[1643739840812,1.51740083,2779.3,2779.0,2.79751616]
[1643739841314,2.17884029,2779.6,2779.0,2.79751616]
[1643739841514,1.51740083,2779.5,2779.0,2.79751616]
[1643739841715,1.51740083,2779.4,2779.0,2.79751616]
[1643739841917,1.51740083,2779.3,2779.0,2.79751616]
[1643739842317,0.94133946,2779.7,2779.0,2.79751616]
[1643739842318,1.51740083,2779.6,2779.0,2.79751616]
[1643739842520,0.42282962,2779.4,2779.0,2.79751616]
[1643739842720,1.51740083,2779.3,2779.0,2.79751616]
[1643739842921,3.47263603,2779.3,2779.0,2.09936]
[1643739843121,3.47474133,2779.2,2779.0,1.79936]
[1643739843319,1.51740083,2779.1,2779.0,1.79936]
[1643739845566,3.52726665,2779.1,2778.7,1.97951]
[1643739845764,0.80148276,2779.2,2778.8,0.3]
[1643739845765,1.51740083,2779.0,2778.8,0.3]
[1643739845966,1.51740083,2778.9,2778.8,0.3]
[1643739846566,1.51740083,2778.9,2778.7,1.79961]
[1643739846769,1.51740083,2778.8,2778.7,1.79961]
[1643739846968,0.33202497,2778.9,2778.7,1.79961]
[1643739847215,1.51740083,2778.8,2778.7,1.79961]
[1643739851769,1.51740083,2779.1,2778.7,1.79961]
[1643739851971,1.51740083,2779.0,2778.7,1.79961]
[1643739852169,1.51740083,2778.9,2778.7,1.79961]
[1643739852377,1.51740083,2778.8,2778.7,1.79961]
[1643739852577,1.88469705,2778.8,2778.7,1.79961]
[1643739854712,1.88469705,2778.8,2778.7,2.09961]
[1643739856716,1.88469705,2778.8,2778.7,1.79961]
[1643739857116,1.51740083,2778.8,2778.7,1.79961]
[1643739857319,1.51740083,2779.1,2778.7,1.79961]
[1643739857522,1.51740083,2779.0,2778.7,1.79961]
[1643739857721,0.80148276,2779.2,2778.7,1.79961]
[1643739857722,1.51740083,2778.9,2778.7,1.79961]
[1643739857922,1.51740083,2778.8,2778.7,1.79961]
[1643739858124,0.1799,2779.3,2778.8,0.3]
[1643739858322,1.5174006,2779.2,2778.8,0.3]
[1643739858723,1.5174006,2779.1,2778.9,0.1799]
[1643739858922,0.2799,2779.7,2778.9,0.1799]
[1643739858923,0.1,2779.7,2778.9,0.1799]
[1643739859122,0.3641488,2779.5,2778.9,1.68026778]
[1643739859324,1.51710624,2779.4,2779.3,3.79622687]
[1643739859722,1.51710624,2779.4,2779.3,4.09622687]
[1643739860126,1.51710624,2779.4,2779.3,0.99622687]
[1643739861242,1.51710624,2779.4,2779.3,0.3]
[1643739862226,1.51580757,2779.4,2779.3,0.3]
[1643739862426,1.51580757,2779.4,2779.2,0.89957]
[1643739863529,0.79231888,2779.3,2779.2,0.89957]
[1643739863729,0.79231888,2779.3,2779.1,1.79913]
[1643739864133,2.07223113,2779.2,2779.1,0.18051931]
[1643739864330,2.07223113,2779.2,2779.0,1.79957]
[1643739865529,1.45375834,2779.3,2779.0,1.79957]
[1643739865730,0.1799,2779.2,2779.0,1.79957]
[1643739867978,0.1799,2779.2,2779.0,2.09957]
[1643739868781,0.3641488,2779.5,2779.0,2.09957]
[1643739868782,0.1799,2779.4,2779.0,2.09957]
[1643739870732,0.1799,2779.4,2779.2,0.6866315]
[1643739870932,0.3641488,2779.5,2779.2,1.5862915]
[1643739871131,0.3641488,2779.5,2779.3,0.3]
[1643739871931,0.1,2779.7,2779.3,1.19962]
[1643739872730,0.1,2779.7,2779.3,0.89962]
[1643739872933,0.35422053,2779.6,2779.3,0.89962]
[1643739874971,0.1,2779.7,2779.3,0.89962]
[1643739875177,0.1,2779.7,2779.4,0.8995178]
[1643739875773,0.1,2779.7,2779.5,2.69843]
[1643739876174,0.92327428,2779.7,2779.5,2.69843]
[1643739876577,2.91897404,2779.7,2779.5,2.69843]
[1643739876778,0.92327428,2779.7,2779.5,2.69843]
[1643739876976,3.54956199,2779.7,2779.5,2.69843]
[1643739877223,3.54956199,2779.7,2779.3,0.89962]
[1643739877224,1.95687645,2779.6,2779.3,0.89962]
[1643739878229,2.61831591,2779.6,2779.3,0.89962]
[1643739878628,1.95687645,2779.6,2779.3,0.89962]
[1643739879225,1.76441374,2779.7,2779.3,0.89962]
[1643739879830,2.60967521,2779.6,2779.3,0.89962]
[1643739880733,2.61826834,2779.6,2779.3,0.89962]
[1643739881178,1.95682888,2779.6,2779.3,0.89962]
[1643739881477,2.76441374,2779.7,2779.3,0.89962]
[1643739881681,1.76441374,2779.7,2779.3,0.89962]
[1643739881881,0.66143946,2779.6,2779.3,0.89962]
[1643739882079,1.76441374,2779.7,2779.3,0.89962]
[1643739882381,2.17877552,2779.6,2779.3,0.89962]
[1643739882578,1.51733606,2779.6,2779.3,0.89962]
[1643739883080,2.17877552,2779.6,2779.3,0.89962]
[1643739883284,4.148532,2779.6,2779.3,0.89962]
[1643739883480,1.51733606,2779.5,2779.3,0.89962]
[1643739884081,1.96651445,2779.4,2779.2,1.14881212]
[1643739884281,2.03633606,2779.3,2778.8,0.1797]
[1643739884582,2.30811645,2779.2,2778.8,0.1797]
[1643739884837,2.30811645,2779.2,2778.8,1.07964]
[1643739884838,1.51733606,2779.1,2778.8,1.07964]
[1643739885638,0.74488401,2779.0,2778.8,1.07964]
[1643739885841,1.51733606,2778.9,2778.8,0.89994]
[1643739887740,1.51733606,2778.9,2778.8,1.19994]
[1643739888140,1.51733606,2778.9,2778.8,1.49994]
[1643739888345,0.1799,2779.6,2778.8,1.49994]
[1643739888574,1.51727262,2779.5,2779.3,0.7298643]
[1643739888780,1.51727262,2779.4,2779.3,0.7298643]
[1643739889176,1.51727262,2779.6,2779.3,0.7298643]
[1643739889377,1.51727262,2779.5,2779.0,1.1449]
[1643739889578,0.43937966,2779.7,2779.0,1.1449]
[1643739889579,1.51727262,2779.4,2779.2,0.89965]
[1643739889777,0.43937966,2779.7,2779.2,0.89965]
[1643739889778,1.51727262,2779.3,2779.2,0.89965]
[1643739889979,1.51727262,2779.6,2779.1,1.79929]
[1643739890479,1.51727262,2779.5,2779.2,2.52098589]
[1643739890681,1.10081912,2779.7,2779.2,2.52098589]
[1643739890682,1.51727262,2779.4,2779.2,2.52098589]
[1643739890882,1.51727262,2779.3,2779.2,2.52098589]
[1643739891278,1.51727262,2779.5,2779.2,2.52098589]
[1643739891496,1.51727262,2779.4,2779.2,2.52098589]
[1643739891677,1.51727262,2779.3,2779.2,2.52098589]
[1643739891878,1.51727262,2779.5,2779.2,2.52098589]
[1643739892218,1.51727262,2779.4,2779.2,2.52098589]
[1643739892424,1.51727262,2779.3,2779.2,2.52098589]
[1643739892621,1.51727262,2779.5,2779.2,2.52098589]
[1643739893427,1.51727262,2779.5,2779.2,1.79941]
[1643739899731,0.00081501,2779.5,2779.2,1.79941]
[1643739899932,1.51808763,2779.5,2779.2,1.79941]
[1643739901037,2.19894496,2779.4,2779.2,1.79941]
[1643739901234,1.51727262,2779.3,2779.2,1.79941]
[1643739902635,1.51727262,2779.3,2778.8,1.07967]
[1643739902636,3.48559532,2779.3,2778.8,1.07967]
[1643739902839,3.48559532,2779.3,2778.8,0.89997]
[1643739902840,2.69717262,2779.2,2778.8,0.89997]
[1643739903037,4.27473415,2779.1,2778.8,0.89997]
[1643739903240,2.69717262,2779.0,2778.8,0.89997]
[1643739903468,0.8909561,2778.3,2778.1,0.1799]
[1643739903872,0.8909561,2778.3,2778.1,1.07993]
[1643739904275,0.40764452,2778.8,2778.1,1.07993]
[1643739904472,1.51765969,2778.7,2778.1,1.07993]
[1643739905072,1.51765969,2778.7,2778.2,0.8999608]
[1643739905274,0.82608495,2778.6,2778.2,0.8999608]
[1643739905474,1.51765969,2778.5,2778.2,1.7999408]
[1643739905674,1.51765969,2778.5,2778.2,2.90846985]
[1643739906076,0.40764452,2778.8,2778.2,2.90846985]
[1643739906279,1.5175913,2778.7,2778.2,3.80839985]
[1643739906575,1.5175913,2778.7,2778.2,3.50839985]
[1643739908635,0.1799,2779.0,2778.3,0.3]
[1643739908845,1.51748501,2778.9,2778.4,0.89978]
[1643739909036,0.00081517,2779.3,2778.4,0.89978]
[1643739909237,0.00081517,2779.3,2778.6,0.3]
[1643739909734,1.51736036,2779.5,2779.0,0.89969]
[1643739909735,0.39656874,2779.4,2779.0,0.89969]
[1643739909935,0.39656874,2779.4,2779.0,2.6990721]
[1643739909936,1.51736036,2779.3,2779.0,2.6990721]
[1643739910139,1.51736036,2779.3,2779.1,0.72247949]
[1643739910336,1.51736036,2779.2,2779.1,0.72247949]
[1643739910535,1.51736036,2779.5,2779.1,0.72247949]
[1643739911386,1.51736036,2779.5,2779.1,1.10872759]
[1643739911684,1.51736036,2779.5,2779.2,0.89963]
[1643739911891,0.1,2779.7,2779.2,0.899575]
[1643739912187,1.51704633,2779.6,2779.4,1.7989163]
[1643739912386,0.1,2779.7,2779.4,1.7989163]
[1643739912689,0.1,2779.7,2779.6,0.89944]
[1643739913089,1.61699732,2779.7,2779.6,1.61655741]
[1643739913286,1.61699732,2779.7,2779.6,1.91655741]
[1643739914088,1.61699732,2779.7,2779.6,1.61655741]
[1643739914830,1.61699732,2779.7,2779.6,1.91655741]
[1643739915033,1.61699732,2779.7,2779.6,1.61655741]
[1643739915529,0.1,2779.7,2779.6,2.21655741]
[1643739915730,1.61699347,2779.7,2779.6,1.91655741]
[1643739916137,1.61699347,2779.7,2779.6,1.01711741]
[1643739916733,1.61699347,2779.7,2779.6,0.71711741]
[1643739922225,1.61699347,2779.7,2779.6,5.61711741]
[1643739922433,0.1,2779.7,2779.6,5.61711741]
[1643739923030,0.1,2779.7,2779.6,1.31711741]
[1643739923231,1.61692484,2779.7,2779.6,1.91658741]
[1643739923433,1.61692484,2779.7,2779.6,1.61658741]
[1643739923630,1.61692484,2779.7,2779.6,1.91658741]
[1643739923831,1.61692484,2779.7,2779.6,2.21658741]
[1643739924032,1.61692484,2779.7,2779.6,1.91658741]
[1643739924235,1.61692484,2779.7,2779.6,2.21658741]
[1643739924438,0.1797,2780.3,2779.7,5.1981469]
[1643739924633,0.1797,2780.3,2779.7,6.9969069]
[1643739924934,0.1797,2780.4,2779.8,2.09879]
[1643739925133,0.66143946,2780.7,2780.3,0.41316129]
[1643739925134,0.1797,2780.6,2780.3,0.41316129]
[1643739925333,0.84113946,2780.6,2779.8,0.3]
[1643739925534,0.66143946,2780.6,2779.8,0.3]
[1643739925732,0.1797,2780.5,2780.2,2.59092854]
[1643739925976,0.1797,2780.5,2780.2,1.7986]
[1643739926383,0.1797,2780.6,2780.2,1.7986]
[1643739927186,0.84113946,2780.6,2780.2,1.7986]
[1643739928190,2.66320624,2780.5,2780.2,1.7986]
[1643739928387,0.1797,2780.4,2780.2,1.7986]
[1643739929593,0.1797,2780.6,2780.2,1.7986]
[1643739930242,0.1797,2780.6,2780.2,2.19161375]
[1643739930644,0.1797,2780.6,2780.2,1.7986]
[1643739932646,0.37780282,2780.3,2780.2,1.7986]
[1643739933350,0.1797,2780.6,2780.2,1.7986]
[1643739934296,1.72435487,2780.9,2780.3,0.3]
[1643739934494,0.01263282,2781.2,2780.4,0.89927]
[1643739934495,0.66143946,2781.2,2780.4,0.89927]
[1643739934699,2.27526189,2781.7,2780.4,0.89927]
[1643739934700,0.66143946,2781.4,2780.5,2.3]
[1643739934898,0.66143946,2781.6,2780.6,1.97774]
[1643739935099,0.66143946,2781.7,2780.7,2.3]
[1643739935299,1.32022044,2782.3,2780.8,2.14424861]
[1643739935300,0.66143946,2782.1,2780.8,2.14424861]
[1643739935496,0.66143946,2782.1,2781.1,1.7975106]
[1643739935699,0.66143946,2782.4,2781.3,1.80526546]
[1643739935996,0.66143946,2782.5,2781.4,0.1797]
[1643739936195,0.66143946,2782.4,2781.5,0.27639994]
[1643739936396,0.66143946,2782.4,2781.6,0.1797]
[1643739936597,1.10818863,2782.4,2782.0,0.78957052]
[1643739936796,1.10818863,2782.4,2781.8,0.8987168]